fUST/lending_fUST_20260314
["ID","MTS","AMOUNT","RATE_DAILY","PERIOD"]
[408349929,1773479443547,-160.0,8.873e-05,2]
[408349930,1773479443556,-160.0,8.873e-05,2]
[408349932,1773479443566,-160.0,8.873e-05,2]
[408349934,1773479443575,-158.2,8.873e-05,2]
[408349936,1773479443584,-257.36,8.873e-05,2]
[408349938,1773479443593,-16000.0,9e-05,2]
[408349940,1773479443602,-649.7351246,9e-05,2]
[408349942,1773479443611,-6940.23855037,9.008e-05,2]
[408349944,1773479443620,-161.71413526,9.035e-05,2]
[408349946,1773479443630,-2000.0,9.1e-05,2]
[408349948,1773479443640,-155.0,9.115e-05,2]
[408349950,1773479443649,-700.1908215,9.115e-05,2]
[408349952,1773479443659,-155.0,9.115e-05,2]
[408349954,1773479443668,-155.0,9.115e-05,2]
[408349956,1773479443680,-155.0,9.115e-05,2]
[408349958,1773479443689,-155.0,9.115e-05,2]
[408349960,1773479443699,-293.38413763,9.115e-05,2]
[408349962,1773479443708,-300.0,9.171e-05,2]
[408349964,1773479443718,-300.0,9.171e-05,2]
[408349965,1773479443727,-300.0,9.171e-05,2]
[408349968,1773479443737,-300.0,9.171e-05,2]
[408349970,1773479443747,-300.0,9.171e-05,2]
[408349971,1773479443758,-300.0,9.171e-05,2]
[408349974,1773479443768,-300.0,9.171e-05,2]
[408349975,1773479443777,-300.0,9.171e-05,2]
[408349978,1773479443787,-300.0,9.171e-05,2]
[408349980,1773479443796,-300.0,9.171e-05,2]
[408349982,1773479443806,-300.0,9.171e-05,2]
[408349984,1773479443816,-300.0,9.171e-05,2]
[408349986,1773479443825,-300.0,9.171e-05,2]
[408349988,1773479443835,-2000.0,9.2e-05,2]
[408349990,1773479443845,-215.79095159,9.259e-05,2]
[408349992,1773479443854,-2000.0,9.3e-05,2]
[408349994,1773479443863,-2000.0,9.4e-05,2]
[408349995,1773479443873,-2000.0,9.5e-05,2]
[408349997,1773479443882,-2000.0,9.6e-05,2]
[408349999,1773479443891,-163.6,9.663e-05,2]
[408350001,1773479443901,-160.0,9.663e-05,2]
[408350003,1773479443910,-158.2,9.663e-05,2]
[408350005,1773479443919,-500.0,9.663e-05,2]
[408350008,1773479443929,-500.0,9.663e-05,2]
[408350009,1773479443938,-160.0,9.69e-05,2]
[408350010,1773479443947,-2000.0,9.7e-05,2]
[408350011,1773479443956,-2000.0,9.8e-05,2]
[408350012,1773479443966,-600.0,9.886e-05,2]
[408350013,1773479443975,-2000.0,9.9e-05,2]
[408350014,1773479443984,-232.58214491,9.912e-05,2]
[408350015,1773479443994,-199.00087601,9.912e-05,2]
[408350016,1773479444003,-217.88375418,9.912e-05,2]
[408350017,1773479444012,-500.0,9.912e-05,2]
[408350018,1773479444021,-500.0,9.912e-05,2]
[408350019,1773479444030,-500.0,9.912e-05,2]
[408350020,1773479444039,-500.0,9.912e-05,2]
[408350021,1773479444048,-150.0,9.912e-05,2]
[408350022,1773479444057,-152.78779674,9.912e-05,2]
[408350023,1773479444067,-152.66938768,9.912e-05,2]
[408350024,1773479444076,-535.0,9.912e-05,2]
[408350025,1773479444086,-847.0,9.912e-05,2]
[408350026,1773479444095,-150.0,9.912e-05,2]
[408350027,1773479444104,-500.0,9.912e-05,2]
[408350028,1773479444113,-500.0,9.912e-05,2]
[408350029,1773479444122,-500.0,9.912e-05,2]
[408350030,1773479444132,-150.0,9.912e-05,2]
[408350031,1773479444141,-150.0,9.912e-05,2]
[408350032,1773479444152,-531.0,9.912e-05,2]
[408350033,1773479444164,-500.0,9.912e-05,2]
[408350034,1773479444173,-150.0,9.912e-05,2]
[408350035,1773479444182,-150.0,9.912e-05,2]
[408350036,1773479444192,-154.25835873,9.912e-05,2]
[408350037,1773479444201,-500.0,9.967e-05,2]
[408350038,1773479444210,-500.0,9.967e-05,2]
[408350039,1773479444219,-561.52324979,9.967e-05,2]
[408350040,1773479444229,-500.0,9.967e-05,2]
[408350041,1773479444238,-165.80865893,9.967e-05,2]
[408350042,1773479444247,-535.0,9.967e-05,2]
[408350043,1773479444257,-847.0,9.967e-05,2]
[408350044,1773479444266,-150.0,9.967e-05,2]
[408350045,1773479444276,-500.0,9.967e-05,2]
[408350046,1773479444285,-500.0,9.967e-05,2]
[408350047,1773479444294,-500.0,9.967e-05,2]
[408350048,1773479444303,-150.0,9.967e-05,2]
[408350049,1773479444312,-171.31113891,9.967e-05,2]
[408350050,1773479444322,-531.0,9.967e-05,2]
[408350051,1773479444332,-500.0,9.967e-05,2]
[408350052,1773479444341,-150.0,9.967e-05,2]
[408350053,1773479444350,-150.90029887,9.967e-05,2]
[408350054,1773479444360,-500.0,0.0001,2]
[408350055,1773479444371,-500.0,0.0001,2]
[408350056,1773479444380,-500.0,0.00010022,2]
[408350057,1773479444390,-500.0,0.00010022,2]
[408350058,1773479444400,-500.0,0.00010022,2]
[408350059,1773479444410,-535.0,0.00010022,2]
[408350060,1773479444419,-847.0,0.00010022,2]
[408350061,1773479444430,-264.94994996,0.00010022,2]
[408350062,1773479444440,-500.0,0.00010022,2]
[408350063,1773479444450,-500.0,0.00010022,2]
[408350064,1773479444459,-500.0,0.00010022,2]
[408350065,1773479444469,-150.0,0.00010022,2]
[408350066,1773479444479,-531.0,0.00010022,2]
[408350067,1773479444488,-500.0,0.00010022,2]
[408350068,1773479444500,-150.0,0.00010022,2]
[408350069,1773479444509,-345.00328779,0.00010076,2]
[408350070,1773479444520,-500.0,0.00010076,2]
[408350071,1773479444529,-500.0,0.00010076,2]
[408350072,1773479444539,-535.0,0.00010076,2]
[408350073,1773479444548,-847.0,0.00010076,2]
[408350074,1773479444558,-500.0,0.00010076,2]
[408350075,1773479444567,-500.0,0.00010076,2]
[408350076,1773479444577,-500.0,0.00010076,2]
[408350077,1773479444587,-150.0,0.00010076,2]
[408350078,1773479444596,-531.0,0.00010076,2]
[408350079,1773479444607,-500.0,0.00010076,2]
[408350080,1773479444617,-150.0,0.00010076,2]
[408350081,1773479444627,-181.51513659,0.00010131,2]
[408350082,1773479444637,-314.62183653,0.00010131,2]
[408350083,1773479444646,-535.0,0.00010131,2]
[408350084,1773479444656,-847.0,0.00010131,2]
[408350085,1773479444666,-500.0,0.00010131,2]
[408350086,1773479444680,-500.0,0.00010131,2]
[408350087,1773479444690,-322.05983497,0.00010131,2]
[408350088,1773479444699,-150.0,0.00010131,2]
[408350089,1773479444708,-531.0,0.00010131,2]
[408350090,1773479444721,-500.0,0.00010131,2]
[408350091,1773479444731,-150.0,0.00010131,2]
[408350092,1773479444740,-535.0,0.00010186,2]
[408350093,1773479444752,-847.0,0.00010186,2]
[408350094,1773479444762,-500.0,0.00010186,2]
[408350095,1773479444771,-500.0,0.00010186,2]
[408350096,1773479444781,-202.95150836,0.00010186,2]
[408350097,1773479444791,-531.0,0.00010186,2]
[408350098,1773479444800,-500.0,0.00010186,2]
[408350099,1773479444810,-170.77952541,0.00010186,2]
[408350100,1773479444820,-5000.0,0.000102,2]
[408350101,1773479444829,-160.0,0.000102,2]
[408350102,1773479444838,-500.0,0.00010211,2]
[408350103,1773479444848,-535.0,0.00010241,2]
[408350104,1773479444857,-847.0,0.00010241,2]
[408350105,1773479444867,-500.0,0.00010241,2]
[408350106,1773479444876,-472.09347546,0.00010241,2]
[408350107,1773479444886,-531.0,0.00010241,2]
[408350108,1773479444896,-500.0,0.00010241,2]
[408350109,1773479444905,-535.0,0.00010296,2]
[408350110,1773479444915,-847.0,0.00010296,2]
[408350111,1773479444925,-538.01773589,0.00010296,2]
[408350112,1773479444935,-531.0,0.00010296,2]
[408350113,1773479444944,-500.0,0.00010296,2]
[408350114,1773479444954,-535.0,0.0001035,2]
[408350115,1773479444963,-847.0,0.0001035,2]
[408350116,1773479444973,-531.0,0.0001035,2]
[408350117,1773479444983,-500.0,0.0001035,2]
[408350118,1773479444993,-535.0,0.00010405,2]
[408350119,1773479445003,-847.0,0.00010405,2]
[408350120,1773479445012,-531.0,0.00010405,2]
[408350121,1773479445022,-500.0,0.00010405,2]
[408350122,1773479445032,-535.0,0.0001046,2]
[408350123,1773479445042,-847.0,0.0001046,2]
[408350124,1773479445052,-531.0,0.0001046,2]
[408350125,1773479445062,-500.0,0.0001046,2]
[408350126,1773479445317,-535.0,0.00010515,2]
[408350127,1773479445328,-847.0,0.00010515,2]
[408350128,1773479445339,-531.0,0.00010515,2]
[408350129,1773479445349,-500.0,0.00010515,2]
[408350130,1773479445359,-535.0,0.0001057,2]
[408350131,1773479445369,-847.0,0.0001057,2]
[408350132,1773479445379,-531.0,0.0001057,2]
[408350133,1773479445388,-500.0,0.0001057,2]
[408350134,1773479445397,-265.6225532,0.00010597,2]
[408350135,1773479445408,-535.0,0.00010624,2]
[408350136,1773479445418,-847.0,0.00010624,2]
[408350137,1773479445428,-531.0,0.00010624,2]
[408350138,1773479445439,-500.0,0.00010624,2]
[408350139,1773479445449,-535.0,0.00010679,2]
[408350140,1773479445459,-847.0,0.00010679,2]
[408350141,1773479445469,-531.0,0.00010679,2]
[408350142,1773479445478,-500.0,0.00010679,2]
[408350143,1773479445487,-160.0,0.0001071,2]
[408350144,1773479445498,-535.0,0.00010734,2]
[408350145,1773479445508,-847.0,0.00010734,2]
[408350146,1773479445518,-531.0,0.00010734,2]
[408350147,1773479445528,-500.0,0.00010734,2]
[408350148,1773479445537,-535.0,0.00010789,2]
[408350149,1773479445547,-847.0,0.00010789,2]
[408350150,1773479445557,-531.0,0.00010789,2]
[408350151,1773479445567,-500.0,0.00010789,2]
[408350152,1773479445577,-7006.5631,0.00010791,2]
[408350153,1773479445587,-535.0,0.00010844,2]
[408350154,1773479445596,-847.0,0.00010844,2]
[408350155,1773479445606,-531.0,0.00010844,2]
[408350156,1773479445616,-499.10121568,0.00010844,2]
[408350157,1773479445625,-720.0,0.00010875,2]
[408350158,1773479445634,-535.0,0.00010898,2]
[408350159,1773479445644,-847.0,0.00010898,2]
[408350160,1773479445654,-531.0,0.00010898,2]
[408350161,1773479445663,-535.0,0.00010953,2]
[408350162,1773479445675,-847.0,0.00010953,2]
[408350163,1773479445687,-531.0,0.00010953,2]
[408350165,1773479445697,-5000.0,0.00010958,2]
[408350166,1773479445706,-151.0,0.00011,2]
[408350167,1773479445715,-151.0,0.00011,2]
[408350168,1773479445726,-151.0,0.00011,2]
[408350169,1773479445736,-151.0,0.00011,2]
[408350170,1773479445746,-151.0,0.00011,2]
[408350171,1773479445757,-151.0,0.00011,2]
[408350172,1773479445767,-535.0,0.00011008,2]
[408350173,1773479445777,-847.0,0.00011008,2]
[408350174,1773479445787,-531.0,0.00011008,2]
[408350175,1773479445796,-535.0,0.00011063,2]
[408350176,1773479445805,-847.0,0.00011063,2]
[408350177,1773479445814,-531.0,0.00011063,2]
[408350178,1773479445824,-535.0,0.00011117,2]
[408350179,1773479445833,-847.0,0.00011117,2]
[408350180,1773479445842,-531.0,0.00011117,2]
[408350181,1773479445852,-456.996,0.00011154,2]
[408350182,1773479445862,-207.899,0.00011154,2]
[408350183,1773479445871,-546.98797449,0.00011172,2]
[408350184,1773479445881,-868.80817699,0.00011172,2]
[408350185,1773479445890,-548.76409603,0.00011172,2]
[408350186,1773479445900,-161.87281991,0.00011226,2]
[408350187,1773479445910,-194.7693931,0.00011263,2]
[408350188,1773479445922,-864.0,0.00011962,2]
[408350189,1773479445932,-15380.3736,0.00012055,2]
[408350190,1773479445941,-711.42664987,0.00012169,2]
[408350191,1773479445951,-1280.56796976,0.00012169,2]
[408350192,1773479445960,-2276.56527957,0.00012169,2]
[408350193,1773479445970,-306.14124775,0.00012597,2]
[408350194,1773479445979,-3557.13324933,0.0001271,2]
[408350195,1773479445988,-2150.738,0.00012954,2]
[408350196,1773479445998,-1000.0,0.00013159,2]
[408350197,1773479446008,-156.66526486,0.00013525,2]
[408350198,1773479446018,-186.6626492,0.00013567,2]
[408350199,1773479446028,-324.7091098,0.00013577,2]
[408350200,1773479446037,-324.6699664,0.00013578,2]
[408350201,1773479446047,-179.92802879,0.00013699,2]
[408350202,1773479446056,-1000.0,0.00013699,2]
[408350203,1773479446066,-151.0,0.00013699,2]
[408350204,1773479446076,-151.0,0.00013699,2]
[408350205,1773479446085,-182.29373,0.00013699,2]
[408350206,1773479446095,-1328.050041,0.00013699,2]
[408350207,1773479446112,-500.0,0.00013699,2]
[408350208,1773479446132,-160.0,0.00013699,2]
[408350209,1773479446150,-500.0,0.00013699,2]
[408350210,1773479446162,-184.03898336,0.00013699,2]
[408350211,1773479446172,-1000.0,0.00013699,2]
[408350212,1773479446182,-361.25716676,0.00014024,2]
[408350213,1773479446191,-5122.27187903,0.00014027,2]
[408350214,1773479446201,-437.0,0.00014154,2]
[408350215,1773479446210,-183.0,0.00014154,2]
[408350216,1773479446219,-1000.0,0.00014247,2]
[408350217,1773479446229,-1000.0,0.00014247,2]
[408350219,1773479446238,-186.6606815,0.000144,2]
[408350221,1773479446247,-1000.0,0.00014474,2]
[408350223,1773479446256,-244.0,0.00014474,2]
[408350225,1773479446266,-435.22571521,0.0001455,5]
[408350227,1773479446275,-346.65994231,0.00014597,2]
[408350229,1773479446284,-645.87406596,0.00014795,2]
[408350231,1773479446293,-1500.0,0.00014795,2]
[408350233,1773479446303,-457.77498701,0.000149,2]
[408350235,1773479446312,-270.83333333,0.00015,2]
[408350237,1773479446322,-455.961617,0.00015068,2]
[408350239,1773479446332,-697.51,0.00015068,2]
[408350241,1773479446341,-36340.62548889,0.00015127,3]
[408350243,1773479446350,-12538.38326644,0.00015127,3]
[408350245,1773479446360,-1034.57742289,0.00015342,2]
[408350247,1773479446369,-454.8480242,0.00015355,2]
[408350249,1773479446379,-275.91190378,0.00015479,3]
[408350251,1773479446388,-1740.90286085,0.00015627,5]
[408350253,1773479446397,-5000.0,0.0001564,2]
[408350255,1773479446406,-1000.0,0.00015922,2]
[408350257,1773479446415,-492.0,0.00015922,2]
[408350259,1773479446428,-270.83333333,0.00016,3]
[408350261,1773479446438,-480.014975,0.00016,2]
[408350263,1773479446447,-500.0,0.00016017,2]
[408350265,1773479446456,-1088.62725859,0.00016109,2]
[408350267,1773479446466,-1000.0,0.0001622,2]
[408350269,1773479446476,-200.0,0.00016438,2]
[408350271,1773479446486,-3580.0,0.00016456,2]
[408350273,1773479446496,-3580.0,0.00016471,2]
[408350275,1773479446505,-3580.0,0.00016483,2]
[408350277,1773479446515,-3580.0,0.0001651,2]
[408350279,1773479446526,-3580.0,0.00016537,2]
[408350281,1773479446535,-1000.0,0.00016565,2]
[408350283,1773479446544,-3580.0,0.00016588,2]
[408350285,1773479446556,-387.17863686,0.00016597,2]
[408350287,1773479446575,-3580.0,0.00016612,2]
[408350289,1773479446595,-3831.0,0.00016626,2]
[408350291,1773479446610,-521.0,0.00016626,2]
[408350293,1773479446623,-10599.0,0.00016626,2]
[408350295,1773479446633,-3580.0,0.00016665,2]
[408350297,1773479446643,-3580.0,0.00016691,2]
[408350299,1773479446652,-3580.0,0.00016702,2]
[408350302,1773479446662,-3580.0,0.00016716,2]
[408350304,1773479446672,-3580.0,0.00016801,2]
[408350305,1773479446688,-3580.0,0.00016812,2]
[408350307,1773479446697,-3580.0,0.00016834,2]
[408350309,1773479446706,-3580.0,0.0001684,2]
[408350310,1773479446715,-3580.0,0.00016865,2]
[408350312,1773479446727,-3580.0,0.0001689,2]
[408350313,1773479446736,-3580.0,0.00016941,2]
[408350315,1773479446745,-3580.0,0.00016953,2]
[408350316,1773479446757,-3580.0,0.00016956,2]
[408350317,1773479446768,-3580.0,0.00017012,2]
[408350318,1773479446784,-3580.0,0.00017015,2]
[408350319,1773479446793,-3580.0,0.00017025,2]
[408350320,1773479446804,-3580.0,0.0001703,2]
[408350321,1773479446815,-345.0,0.00017063,2]
[408350322,1773479446828,-3580.0,0.00017085,2]
[408350323,1773479446838,-1500.0,0.00017113,2]
[408350325,1773479446849,-223.0,0.00017123,3]
[408350327,1773479446859,-183.0,0.00017154,2]
[408350329,1773479446868,-445.0,0.00017268,2]
[408350331,1773479446883,-545.0,0.00017426,2]
[408350333,1773479446895,-169.83336922,0.00017444,5]
[408350335,1773479446904,-3913.11440547,0.00017444,5]
[408350337,1773479446915,-1000.0,0.00017514,2]
[408350339,1773479446924,-791.0,0.00017514,2]
[408350341,1773479446934,-2000.0,0.00017661,2]
[408350342,1773479446944,-454.8586446,0.00017723,2]
[408350343,1773479446955,-324.6908317,0.00017723,2]
[408350344,1773479446965,-454.8480242,0.00017723,2]
[408350345,1773479446975,-186.6590919,0.00017727,2]
[408350346,1773479446986,-150.0,0.00017808,2]
[408350347,1773479446997,-1000.0,0.00018,2]
[408350348,1773479447008,-2500.0,0.00018208,2]
[408350349,1773479447020,-250.0,0.00018356,2]
[408350350,1773479447031,-455.961617,0.00018493,2]
[408350351,1773479447042,-1000.0,0.000185,2]
[408350352,1773479447051,-427.69733142,0.00018597,2]
[408350353,1773479447063,-3000.0,0.00018756,2]
[408350354,1773479447073,-226.0,0.00018767,3]
[408350355,1773479447083,-5000.0,0.00018768,2]
[408350356,1773479447093,-350.0,0.00018904,2]
[408350357,1773479447103,-270.83333333,0.00019,3]
[408350358,1773479447114,-1000.0,0.00019,2]
[408350359,1773479447125,-3000.0,0.000191,3]
[408350360,1773479447134,-1024.73,0.00019178,2]
[408350361,1773479447144,-512.36,0.00019178,2]
[408350362,1773479447153,-2049.48,0.00019178,2]
[408350363,1773479447162,-1024.73,0.00019178,2]
[408350364,1773479447171,-512.37,0.00019178,2]
[408350365,1773479447181,-1024.73,0.00019178,2]
[408350366,1773479447190,-1024.73,0.00019178,2]
[408350367,1773479447199,-1537.1,0.00019178,2]
[408350368,1773479447209,-1024.73,0.00019178,2]
[408350369,1773479447218,-2049.47,0.00019178,2]
[408350370,1773479447228,-512.37,0.00019178,2]
[408350371,1773479447238,-512.36,0.00019178,2]
[408350372,1773479447247,-2661.22589584,0.00019178,2]
[408350373,1773479447264,-5995.38581416,0.00019178,2]
[408350374,1773479447273,-8656.61171,0.00019178,2]
[408350375,1773479447283,-8656.61171,0.00019178,2]
[408350376,1773479447294,-8656.61171,0.00019178,2]
[408350377,1773479447303,-8656.61171,0.00019178,2]
[408350378,1773479447313,-8656.61171,0.00019178,2]
[408350379,1773479447322,-8656.61171,0.00019178,2]
[408350380,1773479447332,-8656.61171,0.00019178,2]
[408350381,1773479447343,-8656.61171,0.00019178,2]
[408350382,1773479447353,-8656.61171,0.00019178,2]
[408350383,1773479447363,-8656.61171,0.00019178,2]
[408350384,1773479447372,-7438.49708584,0.00019178,2]
[408350385,1773479447463,-1000.0,0.000155,2]
[408350386,1773479447473,-1000.0,0.00016,2]
[408350387,1773479447483,-1000.0,0.000165,2]
[408350388,1773479447493,-1000.0,0.00017,2]
[408350389,1773479447503,-1000.0,0.000175,2]
[408350390,1773479447512,-1218.11462416,0.00019178,2]
[408350391,1773479447523,-6407.23213932,0.00019178,2]
[408350394,1773480347105,-412.56058013,9.509e-05,2]
[408350395,1773480603610,161.19,2e-05,2]
[408350422,1773480632244,-4199.55658805,9.414e-05,2]
[408350630,1773480638481,-800.44341195,9.414e-05,2]
[408350631,1773480638491,-552.0,9.414e-05,2]
[408350632,1773480638501,-194.41983296,9.606e-05,2]
[408350633,1773480638510,-978.50318512,9.8e-05,2]
[408350634,1773480638523,-40.24469024,9.8e-05,2]
[408350635,1773480638532,-845.75530976,9.8e-05,2]
[408350636,1773480638543,-253.19172798,9.8e-05,2]
[408350666,1773480640998,-380.36253887,9.8e-05,2]
[408350668,1773480641012,-520.69042339,9.8e-05,2]
[408350670,1773480641022,-1198.57592362,9.9e-05,2]
[408350673,1773480641033,-801.42407638,9.9e-05,2]
[408350675,1773480641044,-2000.0,0.0001,2]
[408350677,1773480641054,-2000.0,0.000101,2]
[408350679,1773480641064,-229.41540289,0.00011606,2]
[408350681,1773480641073,-245.2741309,0.00011953,2]
[408350748,1773480643529,-254.7258691,0.00011953,2]
[408350749,1773480643539,-508.46637778,0.00011953,2]
[408350750,1773480643548,-605.26789728,0.00011953,2]
[408350751,1773480643558,-605.26789728,0.00011953,2]
[408350752,1773480643567,-535.61843653,0.00011953,2]
[408350753,1773480643637,-69.64946075,0.00011953,2]
[408350754,1773480643647,-605.26789728,0.00011953,2]
[408350755,1773480643657,-605.26789728,0.00011953,2]
[408350756,1773480643666,-605.26789728,0.00011953,2]
[408350757,1773480643675,-605.26789728,0.00011953,2]
[408350758,1773480643685,-605.26789728,0.00011953,2]
[408350759,1773480643694,-605.26789728,0.00011953,2]
[408350760,1773480643704,-605.26789728,0.00011953,2]
[408350761,1773480643713,-605.26789728,0.00011953,2]
[408350762,1773480643723,-605.26789728,0.00011953,2]
[408350763,1773480643733,-605.26789728,0.00011953,2]
[408350764,1773480643742,-605.26789728,0.00011953,2]
[408350765,1773480643751,-605.26789728,0.00011953,2]
[408350766,1773480643761,-605.26789728,0.00011953,2]
[408350767,1773480643770,-67.56227879,0.00011953,2]
[408350768,1773480643782,-537.70561849,0.00011953,2]
[408350769,1773480643791,-605.26789728,0.00011953,2]
[408350770,1773480643801,-605.26789728,0.00011953,2]
[408350771,1773480643810,-605.26789728,0.00011953,2]
[408350772,1773480643821,-605.26789728,0.00011953,2]
[408350773,1773480643831,-605.26789728,0.00011953,2]
[408350774,1773480643842,-605.26789728,0.00011953,2]
[408350775,1773480643853,-430.27684684,0.00011953,2]
[408350785,1773480646683,-174.99105044,0.00011953,2]
[408350786,1773480646693,-605.26789728,0.00011953,2]
[408350787,1773480646703,-605.26789728,0.00011953,2]
[408350788,1773480646713,-605.26789728,0.00011953,2]
[408350789,1773480646723,-605.26789728,0.00011953,2]
[408350790,1773480646733,-605.26789728,0.00011953,2]
[408350791,1773480646743,-605.26789728,0.00011953,2]
[408350792,1773480646753,-605.26789728,0.00011953,2]
[408350793,1773480646763,-64.4615215,0.00011953,2]
[408350794,1773480646775,-540.80637578,0.00011953,2]
[408350795,1773480646785,-605.26789728,0.00011953,2]
[408350796,1773480646795,-605.26789728,0.00011953,2]
[408350797,1773480646805,-605.26789728,0.00011953,2]
[408350798,1773480646814,-605.26789728,0.00011953,2]
[408350799,1773480646824,-605.26789728,0.00011953,2]
[408350800,1773480646834,-605.26789728,0.00011953,2]
[408350801,1773480646844,-605.26789728,0.00011953,2]
[408350802,1773480646853,-605.26789728,0.00011953,2]
[408350803,1773480646863,-605.26789728,0.00011953,2]
[408350804,1773480646872,-605.26789728,0.00011953,2]
[408350805,1773480646882,-605.26789728,0.00011953,2]
[408350806,1773480646891,-605.26789728,0.00011953,2]
[408350807,1773480646900,-605.26789728,0.00011953,2]
[408350808,1773480646909,-605.26789728,0.00011953,2]
[408350809,1773480646919,-605.26789728,0.00011953,2]
[408350810,1773480646929,-605.26789728,0.00011953,2]
[408350811,1773480646939,-605.26789728,0.00011953,2]
[408350812,1773480646948,-605.26789728,0.00011953,2]
[408350813,1773480646957,-605.26789728,0.00011953,2]
[408350814,1773480646967,-605.26789728,0.00011953,2]
[408350816,1773480646976,-605.26789728,0.00011953,2]
[408350818,1773480646985,-605.26789728,0.00011953,2]
[408350819,1773480646994,-605.26789728,0.00011953,2]
[408350820,1773480647004,-605.26789728,0.00011953,2]
[408350821,1773480647014,-605.26789728,0.00011953,2]
[408350822,1773480647024,-605.26789728,0.00011953,2]
[408350823,1773480647034,-605.26789728,0.00011953,2]
[408350824,1773480647043,-605.26789728,0.00011953,2]
[408350825,1773480647055,-605.26789728,0.00011953,2]
[408350826,1773480647064,-605.26789728,0.00011953,2]
[408350827,1773480647074,-605.26789728,0.00011953,2]
[408350828,1773480647086,-605.26789728,0.00011953,2]
[408350829,1773480647096,-605.26789728,0.00011953,2]
[408350830,1773480647108,-605.26789728,0.00011953,2]
[408350831,1773480647119,-500.0,0.00011953,2]
[408350832,1773480647130,-500.0,0.00011953,2]
[408350833,1773480647139,-500.0,0.00011953,2]
[408350834,1773480647148,-500.0,0.00011953,2]
[408350835,1773480647158,-500.0,0.00011953,2]
[408350836,1773480647167,-500.0,0.00011953,2]
[408350837,1773480647176,-500.0,0.00011953,2]
[408350838,1773480647185,-500.0,0.00011953,2]
[408350839,1773480647195,-500.0,0.00011953,2]
[408350840,1773480647205,-500.0,0.00011953,2]
[408350841,1773480647216,-500.0,0.00011953,2]
[408350842,1773480647235,-500.0,0.00011953,2]
[408350843,1773480647245,-500.0,0.00011953,2]
[408350844,1773480647255,-500.0,0.00011953,2]
[408350845,1773480647264,-500.0,0.00011953,2]
[408350846,1773480647276,-500.0,0.00011953,2]
[408350847,1773480647285,-500.0,0.00011953,2]
[408350848,1773480647294,-500.0,0.00011953,2]
[408350849,1773480647304,-500.0,0.00011953,2]
[408350850,1773480647313,-500.0,0.00011953,2]
[408350851,1773480647323,-500.0,0.00011953,2]
[408350852,1773480647332,-500.0,0.00011953,2]
[408350853,1773480647341,-500.0,0.00011953,2]
[408350854,1773480647351,-500.0,0.00011953,2]
[408350855,1773480647360,-500.0,0.00011953,2]
[408350856,1773480647370,-500.0,0.00011953,2]
[408350857,1773480647380,-500.0,0.00011953,2]
[408350858,1773480647389,-500.0,0.00011953,2]
[408350859,1773480647398,-500.0,0.00011953,2]
[408350860,1773480647408,-500.0,0.00011953,2]
[408350861,1773480647417,-500.0,0.00011953,2]
[408350862,1773480647427,-500.0,0.00011953,2]
[408350863,1773480647436,-216.68601683,0.00011953,2]
[408350864,1773480647446,-1846.82002219,0.00011954,2]
[408350870,1773481747138,-273.86733776,2.08e-05,2]
[408350871,1773481747159,-194.05726956,2.091e-05,2]
[408350872,1773481747181,-5000.0,2.101e-05,2]
[408350873,1773481747201,-1602.41,2.3e-05,2]
[408350874,1773481747221,-228.98757809,4.091e-05,2]
[408350875,1773481747244,-3843.24805611,5e-05,2]
[408350876,1773481747266,-7875.36426568,5.1e-05,2]
[408350877,1773481747287,-8799.03744142,5.2e-05,2]
[408350878,1773481766115,-5000.0,5.148e-05,2]
[408350879,1773481766139,-7.0484584,5.2e-05,2]